[Event "1.FrauenBL 2018-19"]
[Site "Berlin"]
[Date "2019.03.01"]
[Round "9.4"]
[White "Froehlich-Dill, Astrid"]
[Black "Schoene, Maria"]
[Result "1-0"]
[ECO "E94"]
[WhiteElo "1780"]
[BlackElo "2168"]
[Annotator "NA"]
[PlyCount "133"]
[EventDate "2018.10.27"]
[EventType "team-tourn"]
[EventCountry "GER"]
[SourceTitle "playchess.com"]
[Source "ChessBase"]
[SourceQuality "1"]
[WhiteTeam "Hofheim"]
[BlackTeam "Bad Koenigshofen"]
[TimeControl "40/5400+30:1800+30"]

1. d4 {[%emt 0:00:00]} Nf6 {[%emt 0:00:10]} 2. c4 {[%emt 0:00:10]} g6 {[%emt 0:00:05]} 3. Nc3 {[%emt 0:00:52]} Bg7 {[%emt 0:00:11]} 4. e4 {[%emt 0:00:30]} d6 {[%emt 0:00:08]} 5. Nf3 {[%emt 0:02:10]} O-O {[%emt 0:02:38]} 6. Be2 {[%emt 0:03:04]} e5 {[%emt 0:00:00]} 7. dxe5 {[%emt 0:05:24]} dxe5 {[%emt 0:00:00]} 8. Be3 {[%emt 0:00:58]} Nbd7 {[%emt 0:09:26]} 9. h3 {[%emt 0:04:44]} c6 {[%emt 0:00:00]} 10. O-O {[%emt 0:04:39]} Qc7 {[%emt 0:00:00]} 11. Qc2 {[%emt 0:01:12]} Re8 {[%emt 0:00:00]} 12. c5 {[%emt 0:09:56]} Nf8 {[%emt 0:11:11]} 13. Rfd1 {[%emt 0:07:17]} Ne6 {[%emt 0:07:30]} 14. Rd2 {[%emt 0:15:04]} Bf8 {[%emt 0:24:11]} 15. Na4 {[%emt 0:07:35]} Bd7 {[%emt 0:07:35]} 16. Rad1 {[%emt 0:02:34]} Rad8 {[%emt 0:01:19]} 17. b4 {[%emt 0:08:20]} Bc8 {[%emt 0:05:30]} 18. Nb2 {[%emt 0:04:13]} Rxd2 {[%emt 0:07:36]} 19. Rxd2 {[%emt 0:00:12]} b5 {[%emt 0:00:54]} 20. cxb6 {[%emt 0:00:00]} axb6 {[%emt 0:00:00]} 21. a3 {[%emt 0:08:23]} Bb7 {[%emt 0:01:06]} 22. Nc4 {[%emt 0:01:49]} c5 {[%emt 0:09:06]} 23. Ncxe5 {[%emt 0:02:56]} Bxe4 {[%emt 0:00:00]} 24. Qb3 {[%emt 0:03:41]} Bd6 {[%emt 0:06:37]} 25. Nc4 {[%emt 0:00:00]} Bf4 {[%emt 0:00:00]} 26. bxc5 {[%emt 0:02:13]} bxc5 {[%emt 0:00:00]} 27. Qb6 {[%emt 0:00:00]} Nd5 {[%emt 0:01:05]} 28. Qxc7 {[%emt 0:01:28]} Bxc7 {[%emt 0:00:02]} 29. Bh6 {[%emt 0:01:06]} Nef4 {[%emt 0:02:15]} 30. Ne3 {[%emt 0:01:04]} Nc3 {[%emt 0:01:15]} 31. Bf1 {[%emt 0:01:22]} Nxh3+ {[%emt 0:02:36]} 32. gxh3 {[%emt 0:00:12]} Bxf3 {[%emt 0:00:12]} 33. Rc2 {[%emt 0:00:27]} Ne4 {[%emt 0:00:00]} 34. Ng4 {[%emt 0:00:50]} Bxg4 {[%emt 0:01:17]} 35. hxg4 {[%emt 0:00:02]} Be5 {[%emt 0:00:08]} 36. Bb5 {[%emt 0:00:00]} Rb8 {[%emt 0:01:03]} 37. a4 {[%emt 0:01:09]} Bd4 {[%emt 0:00:00]} 38. Kg2 {[%emt 0:01:36]} Nd6 {[%emt 0:01:36]} 39. Bf4 {[%emt 0:00:38]} Rb6 {[%emt 0:01:52]} 40. Bxd6 {[%emt 0:00:31]} Rxd6 {[%emt 0:00:01]} 41. a5 {[%emt 0:31:00]} Rd8 {[%emt 0:31:11]} 42. a6 {[%emt 0:01:33]} Ra8 {[%emt 0:00:00]} 43. Bc4 {[%emt 0:00:00]} Kf8 {[%emt 0:00:00]} 44. Re2 {[%emt 0:00:00]} Bf6 {[%emt 0:00:00]} 45. Ra2 {[%emt 0:00:00]} Ra7 {[%emt 0:00:00]} 46. Bd5 {[%emt 0:00:00]} Ke7 {[%emt 0:00:00]} 47. Bb7 {[%emt 0:00:00]} Kd6 {[%emt 0:00:00]} 48. Rd2+ {[%emt 0:00:00]} Bd4 {[%emt 0:00:00]} 49. f4 {[%emt 0:00:00]} h6 {[%emt 0:00:00]} 50. Kf3 {[%emt 0:00:00]} f5 {[%emt 0:00:00]} 51. gxf5 {[%emt 0:00:00]} gxf5 {[%emt 0:00:00]} 52. Rh2 {[%emt 0:00:00]} c4 {[%emt 0:00:00]} 53. Rxh6+ {[%emt 0:00:00]} Kc5 {[%emt 0:00:00]} 54. Ke2 {[%emt 0:00:00]} Kb4 {[%emt 0:00:00]} 55. Rd6 {[%emt 0:00:00]} Bg7 {[%emt 0:00:00]} 56. Rd5 {[%emt 0:03:28]} Kc3 {[%emt 0:06:18]} 57. Rxf5 {[%emt 0:00:00]} Kc2 {[%emt 0:00:12]} 58. Rf7 {[%emt 0:01:54]} Bd4 {[%emt 0:00:03]} 59. f5 {[%emt 0:00:03]} Kb2 {[%emt 0:00:37]} 60. Rd7 {[%emt 0:00:37]} Be5 {[%emt 0:01:19]} 61. Rd5 {[%emt 0:00:00]} Bg7 {[%emt 0:00:00]} 62. Rc5 {[%emt 0:00:00]} c3 {[%emt 0:00:00]} 63. Kd3 {[%emt 0:00:00]} Kb3 {[%emt 0:01:51]} 64. Rb5+ {[%emt 0:00:00]} Ka3 {[%emt 0:00:23]} 65. Kc2 {[%emt 0:00:00]} Ka4 {[%emt 0:01:16]} 66. Rb3 {[%emt 0:00:18]} Ka5 {[%emt 0:00:27]} 67. Rxc3 {[%emt 0:00:14]} 1-0

[Event "1.FrauenBL 2018-19"]
[Site "Berlin"]
[Date "2019.03.01"]
[Round "9.5"]
[White "Paehtz, Elisabeth"]
[Black "Javakhishvili, Lela"]
[Result "1/2-1/2"]
[ECO "E05"]
[WhiteElo "2448"]
[BlackElo "2455"]
[Annotator "ChessBase"]
[PlyCount "49"]
[EventDate "2018.10.27"]
[EventType "team-tourn"]
[EventCountry "GER"]
[SourceTitle "playchess.com"]
[Source "ChessBase"]
[SourceQuality "1"]
[WhiteTeam "SF Deizisau"]
[BlackTeam "SK Schwaebisch Hall"]
[TimeControl "40/5400+30:1800+30"]

1. d4 {[%emt 0:00:05]} Nf6 {[%emt 0:00:19]} 2. c4 {[%emt 0:00:06]} e6 {[%emt 0:00:13]} 3. Nf3 {[%emt 0:01:15]} d5 {[%emt 0:00:51]} 4. g3 {[%emt 0:00:04]} Be7 {[%emt 0:00:43]} 5. Bg2 {[%emt 0:00:09]} O-O {[%emt 0:00:08]} 6. O-O {[%emt 0:00:05]} dxc4 {[%emt 0:00:16]} 7. Qc2 {[%emt 0:04:43]} a6 {[%emt 0:02:27]} 8. a4 {[%emt 0:00:16]} Bd7 {[%emt 0:00:44]} 9. Qxc4 {[%emt 0:03:40]} Bc6 {[%emt 0:00:31]} 10. Bg5 {[%emt 0:06:31]} Bd5 {[%emt 0:09:17]} 11. Qc2 {[%emt 0:00:44]} Be4 {[%emt 0:01:41]} 12. Qd1 {[%emt 0:00:20]} c5 {[%emt 0:02:54]} 13. dxc5 {[%emt 0:04:27]} Bxc5 {[%emt 0:02:38]} 14. Qxd8 {[%emt 0:00:35]} Rxd8 {[%emt 0:00:06]} 15. Nbd2 {[%emt 0:00:17]} Bc6 {[%emt 0:06:14]} 16. Nb3 {[%emt 0:15:28]} Be7 {[%emt 0:04:53]} 17. Na5 {[%emt 0:06:27]} h6 {[%emt 0:07:04]} 18. Bf4 {[%emt 0:03:35]} Nd5 {[%emt 0:05:56]} 19. Bxb8 {[%emt 0:02:45]} Raxb8 {[%emt 0:00:16]} 20. Nxc6 {[%emt 0:00:04]} bxc6 {[%emt 0:00:05]} 21. Ne5 {[%emt 0:05:36]} Rxb2 {[%emt 0:07:28]} 22. Nxc6 {[%emt 0:00:09]} Rd7 {[%emt 0:00:56]} 23. Nxe7+ {[%emt 0:04:18]} Rxe7 {[%emt 0:05:25]} 24. Bxd5 {[%emt 0:01:07]} exd5 {[%emt 0:00:07]} 25. e3 {[%emt 0:00:07]} 1/2-1/2

[Event "1.FrauenBL 2018-19"]
[Site "Berlin"]
[Date "2019.03.01"]
[Round "9.5"]
[White "Belenkaya, Dina"]
[Black "Zahn, Nicol"]
[Result "1-0"]
[ECO "B54"]
[WhiteElo "2360"]
[BlackElo "1857"]
[Annotator "NA"]
[PlyCount "97"]
[EventDate "2018.10.27"]
[EventType "team-tourn"]
[EventCountry "GER"]
[SourceTitle "playchess.com"]
[Source "ChessBase"]
[SourceQuality "1"]
[WhiteTeam "Bad Koenigshofen"]
[BlackTeam "Hofheim"]
[TimeControl "40/5400+30:1800+30"]

1. e4 {[%emt 0:00:06]} c5 2. Nf3 {[%emt 0:00:10]} e6 {[%emt 0:00:10]} 3. c4 {[%emt 0:01:09]} Nc6 {[%emt 0:00:04]} 4. Be2 {[%emt 0:00:50]} d6 {[%emt 0:00:32]} 5. d4 {[%emt 0:01:14]} cxd4 {[%emt 0:02:07]} 6. Nxd4 {[%emt 0:00:13]} Nf6 {[%emt 0:08:06]} 7. Nc3 {[%emt 0:00:12]} Be7 {[%emt 0:00:26]} 8. O-O {[%emt 0:00:23]} O-O {[%emt 0:00:17]} 9. Nc2 {[%emt 0:02:09]} a6 {[%emt 0:03:38]} 10. Be3 {[%emt 0:02:48]} Qc7 {[%emt 0:13:14]} 11. Qd2 {[%emt 0:04:58]} Rd8 {[%emt 0:06:28]} 12. Rfd1 {[%emt 0:01:44]} b6 {[%emt 0:16:40]} 13. f3 {[%emt 0:04:53]} Bd7 {[%emt 0:07:01]} 14. Bf1 {[%emt 0:01:05]} Be8 {[%emt 0:02:55]} 15. Rac1 {[%emt 0:00:25]} Rab8 {[%emt 0:16:45]} 16. Ne1 {[%emt 0:02:05]} Bf8 {[%emt 0:07:27]} 17. Kh1 {[%emt 0:00:50]} h6 {[%emt 0:00:57]} 18. Qf2 {[%emt 0:00:19]} Ne5 {[%emt 0:01:15]} 19. b3 {[%emt 0:00:41]} Ned7 {[%emt 0:01:40]} 20. Nd3 {[%emt 0:02:08]} Nc5 {[%emt 0:00:18]} 21. Nb2 {[%emt 0:00:44]} a5 {[%emt 0:01:24]} 22. Nd3 {[%emt 0:03:40]} Nfd7 {[%emt 0:01:37]} 23. Nb5 {[%emt 0:03:28]} Qc6 {[%emt 0:02:45]} 24. Qg3 {[%emt 0:03:01]} Kh8 {[%emt 0:01:27]} 25. Nf2 {[%emt 0:07:26]} Nf6 {[%emt 0:00:32]} 26. Rd2 {[%emt 0:05:29]} Rd7 {[%emt 0:02:00]} 27. Nd1 {[%emt 0:01:43]} Rbd8 {[%emt 0:02:02]} 28. Ndc3 {[%emt 0:00:14]} Kh7 {[%emt 0:00:33]} 29. Rcd1 {[%emt 0:00:23]} Nh5 {[%emt 0:00:35]} 30. Qh4 {[%emt 0:00:30]} g6 {[%emt 0:00:38]} 31. g4 {[%emt 0:00:57]} Ng7 {[%emt 0:00:22]} 32. Qxh6+ {[%emt 0:01:07]} Kg8 {[%emt 0:00:01]} 33. Qh3 {[%emt 0:00:30]} f5 {[%emt 0:00:08]} 34. gxf5 {[%emt 0:00:23]} exf5 {[%emt 0:00:07]} 35. Nd4 {[%emt 0:04:47]} Qb7 {[%emt 0:00:32]} 36. Nd5 {[%emt 0:00:53]} Rf7 {[%emt 0:00:14]} 37. Bg5 {[%emt 0:04:51]} Rdd7 {[%emt 0:00:38]} 38. Nf4 {[%emt 0:01:19]} fxe4 {[%emt 0:00:17]} 39. Nxg6 {[%emt 0:00:32]} Rxf3 {[%emt 0:00:10]} 40. Qh8+ {[%emt 0:02:28]} Kf7 {[%emt 0:00:02]} 41. Qxf8+ {[%emt 0:33:49]} Kxg6 {[%emt 0:30:06]} 42. Nxf3 {[%emt 0:00:35]} exf3 {[%emt 0:00:05]} 43. Rxd6+ {[%emt 0:02:41]} Rxd6 {[%emt 0:01:32]} 44. Rxd6+ {[%emt 0:00:07]} Kxg5 {[%emt 0:02:25]} 45. Qf6+ {[%emt 0:00:34]} Kg4 {[%emt 0:00:31]} 46. h3+ {[%emt 0:00:40]} Kg3 {[%emt 0:00:39]} 47. Qg5+ {[%emt 0:00:24]} Kf2 {[%emt 0:00:18]} 48. Rd2+ {[%emt 0:00:14]} Ke1 {[%emt 0:00:34]} 49. Qe3+ {[%emt 0:00:06] --- [%clk ] Qe4+ [%clk ]} 1-0

[Event "1.FrauenBL 2018-19"]
[Site "Berlin"]
[Date "2019.03.01"]
[Round "9.5"]
[White "Tammert, Iamze"]
[Black "Mader, Manuela"]
[Result "1/2-1/2"]
[ECO "A26"]
[WhiteElo "2284"]
[BlackElo "2156"]
[Annotator "NA"]
[PlyCount "114"]
[EventDate "2018.10.27"]
[EventType "team-tourn"]
[EventCountry "GER"]
[SourceTitle "playchess.com"]
[Source "ChessBase"]
[SourceQuality "1"]
[WhiteTeam "OSG Baden-Baden"]
[BlackTeam "Karlsruher SF"]
[TimeControl "40/5400+30:1800+30"]

1. c4 {[%emt 0:00:03]} Nf6 {[%emt 0:00:00]} 2. Nc3 {[%emt 0:00:02]} g6 {[%emt 0:00:00]} 3. g3 {[%emt 0:00:14]} Bg7 {[%emt 0:00:14]} 4. Bg2 {[%emt 0:00:04]} O-O {[%emt 0:00:00]} 5. e4 {[%emt 0:03:41]} d6 {[%emt 0:01:03]} 6. Nge2 {[%emt 0:00:09]} Nc6 {[%emt 0:05:12]} 7. O-O {[%emt 0:00:14]} e5 {[%emt 0:02:23]} 8. d3 {[%emt 0:02:05]} a6 {[%emt 0:07:19]} 9. h3 {[%emt 0:00:46]} Nd4 {[%emt 0:01:11]} 10. f4 {[%emt 0:05:00]} Rb8 {[%emt 0:11:00]} 11. Nxd4 {[%emt 0:03:36]} exd4 {[%emt 0:00:05]} 12. Ne2 {[%emt 0:00:03]} c5 {[%emt 0:00:00]} 13. g4 {[%emt 0:15:58]} h6 {[%emt 0:10:45]} 14. Qe1 {[%emt 0:14:53]} b5 {[%emt 0:09:22]} 15. b3 {[%emt 0:04:29]} bxc4 {[%emt 0:02:13]} 16. bxc4 {[%emt 0:00:04]} Re8 {[%emt 0:15:48]} 17. Qf2 {[%emt 0:06:59]} Qe7 {[%emt 0:06:14]} 18. Ng3 {[%emt 0:08:57]} Bxg4 {[%emt 0:16:31]} 19. hxg4 {[%emt 0:07:30]} Nxg4 {[%emt 0:00:04]} 20. Qf3 {[%emt 0:16:52]} Qh4 {[%emt 0:01:45]} 21. Rd1 {[%emt 0:00:00]} Nh2 {[%emt 0:01:14]} 22. Qf2 {[%emt 0:00:52]} Ng4 {[%emt 0:00:03]} 23. Qe1 {[%emt 0:00:57]} Qh2+ {[%emt 0:00:26]} 24. Kf1 {[%emt 0:00:01]} Bf6 {[%emt 0:00:40]} 25. Nh1 {[%emt 0:01:14]} Ne3+ {[%emt 0:07:26]} 26. Bxe3 {[%emt 0:00:02]} dxe3 {[%emt 0:00:03]} 27. Qg3 {[%emt 0:03:09]} Qxg3 {[%emt 0:00:17]} 28. Nxg3 {[%emt 0:03:01]} Bxa1 29. Rxa1 Rb2 {[%emt 0:00:28]} 30. Re1 {[%emt 0:00:58]} Rxa2 {[%emt 0:00:06]} 31. Rxe3 {[%emt 0:00:00]} Rb8 {[%emt 0:00:09]} 32. Ne2 {[%emt 0:02:44]} Rb1+ {[%emt 0:00:24]} 33. Kf2 {[%emt 0:00:01]} Rbb2 {[%emt 0:00:36]} 34. e5 {[%emt 0:00:03]} dxe5 {[%emt 0:00:41]} 35. Rxe5 {[%emt 0:00:01]} a5 {[%emt 0:00:26]} 36. Bf3 {[%emt 0:00:00]} h5 {[%emt 0:03:08]} 37. Kg3 {[%emt 0:02:40]} Rd2 {[%emt 0:00:32]} 38. Re3 {[%emt 0:01:25]} a4 {[%emt 0:00:29]} 39. f5 {[%emt 0:00:34]} a3 {[%emt 0:00:34]} 40. fxg6 {[%emt 0:00:00]} fxg6 {[%emt 0:00:10]} 41. Nf4 {[%emt 0:29:52]} Ra1 {[%emt 0:31:06]} 42. Bd5+ {[%emt 0:00:00]} Kh7 {[%emt 0:00:00]} 43. Re7+ {[%emt 0:00:00]} Kh6 {[%emt 0:00:00]} 44. Bg8 {[%emt 0:00:00]} Rg1+ {[%emt 0:00:00]} 45. Kf3 {[%emt 0:00:00]} Rf1+ 46. Kg3 {[%emt 0:00:00]} h4+ {[%emt 0:00:00]} 47. Kg4 {[%emt 0:00:00]} Rg1+ {[%emt 0:00:00]} 48. Kf3 {[%emt 0:00:00]} Rg3+ {[%emt 0:00:00]} 49. Ke4 {[%emt 0:00:00]} a2 {[%emt 0:00:00]} 50. Ra7 {[%emt 0:00:16]} Kg5 {[%emt 0:00:00]} 51. Ne6+ {[%emt 0:00:37]} Kg4 {[%emt 0:00:00]} 52. Nxc5 {[%emt 0:00:10]} Rg1 {[%emt 0:00:00]} 53. Nb3 {[%emt 0:03:31]} Rb2 {[%emt 0:00:00]} 54. c5 {[%emt 0:00:20]} h3 {[%emt 0:01:27]} 55. Be6+ {[%emt 0:00:00]} Kg3 {[%emt 0:03:55]} 56. Rxa2 {[%emt 0:03:38]} Rxa2 {[%emt 0:01:46]} 57. Nd4 {[%emt 0:00:13]} h2 {[%emt 0:00:00]} 1/2-1/2

[Event "1.FrauenBL 2018-19"]
[Site "Berlin"]
[Date "2019.03.01"]
[Round "9.5"]
[White "Gosciniak, Maria"]
[Black "Osmanodja, Filiz"]
[Result "1-0"]
[ECO "A05"]
[WhiteElo "2116"]
[BlackElo "2326"]
[Annotator "NA"]
[PlyCount "141"]
[EventDate "2018.10.27"]
[EventType "team-tourn"]
[EventCountry "GER"]
[SourceTitle "playchess.com"]
[Source "ChessBase"]
[SourceQuality "1"]
[WhiteTeam "TuRa Harksheide"]
[BlackTeam "Hamburger SK"]
[TimeControl "40/5400+30:1800+30"]

1. Nf3 {[%emt 0:00:07]} Nf6 {[%emt 0:04:28]} 2. g3 {[%emt 0:00:28]} b5 {[%emt 0:03:33]} 3. Bg2 {[%emt 0:00:10]} Bb7 {[%emt 0:00:08]} 4. O-O {[%emt 0:00:12]} e6 {[%emt 0:00:24]} 5. d3 {[%emt 0:07:36]} Be7 {[%emt 0:01:17]} 6. e4 {[%emt 0:00:00]} d6 {[%emt 0:00:07]} 7. a4 {[%emt 0:00:00]} a6 {[%emt 0:01:44]} 8. Nbd2 {[%emt 0:00:00]} O-O {[%emt 0:02:34]} 9. axb5 {[%emt 0:06:45]} axb5 {[%emt 0:00:13]} 10. Rxa8 {[%emt 0:00:00]} Bxa8 {[%emt 0:00:02]} 11. Nd4 {[%emt 0:00:11]} Qd7 {[%emt 0:06:31]} 12. f4 {[%emt 0:05:48]} c5 {[%emt 0:01:04]} 13. N4f3 {[%emt 0:00:34]} Nc6 {[%emt 0:03:59]} 14. h3 {[%emt 0:04:13]} Qa7 {[%emt 0:08:51]} 15. Kh2 {[%emt 0:16:02]} Nd7 {[%emt 0:14:39]} 16. f5 {[%emt 0:09:07]} exf5 {[%emt 0:03:16]} 17. Nh4 {[%emt 0:12:30]} Bxh4 {[%emt 0:03:55]} 18. gxh4 {[%emt 0:00:08]} Ne7 {[%emt 0:02:57]} 19. Qe2 {[%emt 0:21:24]} Ng6 {[%emt 0:23:16]} 20. exf5 {[%emt 0:00:00]} Nge5 {[%emt 0:06:32]} 21. Bxa8 {[%emt 0:00:24]} Qxa8 {[%emt 0:00:00]} 22. Ne4 {[%emt 0:12:44]} f6 {[%emt 0:00:00]} 23. Qg2 {[%emt 0:02:01]} Qb8 {[%emt 0:04:32]} 24. Bf4 {[%emt 0:01:26]} Rf7 {[%emt 0:07:18]} 25. Ng3 {[%emt 0:00:18]} Nf8 {[%emt 0:00:00]} 26. Rg1 {[%emt 0:00:27]} Qb7 {[%emt 0:00:00]} 27. Ne4 {[%emt 0:00:30]} Qc7 {[%emt 0:01:15]} 28. Nc3 {[%emt 0:00:00]} Qd7 {[%emt 0:00:03]} 29. Qe4 {[%emt 0:01:17]} Nc6 {[%emt 0:01:14]} 30. Nd5 {[%emt 0:00:11]} Ne7 {[%emt 0:00:59]} 31. Nxe7+ {[%emt 0:00:40]} Qxe7 {[%emt 0:00:30]} 32. Qxe7 {[%emt 0:00:11]} Rxe7 {[%emt 0:00:00]} 33. Bxd6 {[%emt 0:00:04]} Re2+ {[%emt 0:00:47]} 34. Rg2 {[%emt 0:00:18]} Re1 {[%emt 0:00:45]} 35. Bxc5 {[%emt 0:01:07]} Nd7 {[%emt 0:00:00]} 36. Bd4 {[%emt 0:00:00]} Ne5 {[%emt 0:00:55]} 37. Bxe5 {[%emt 0:00:00]} fxe5 {[%emt 0:00:30]} 38. Rf2 {[%emt 0:01:54]} Kf7 {[%emt 0:00:21]} 39. Kg2 {[%emt 0:00:35]} Kf6 {[%emt 0:00:11]} 40. Kg3 {[%emt 0:00:30]} b4 {[%emt 0:01:04]} 41. Kf3 {[%emt 0:10:10]} Kxf5 {[%emt 0:02:47]} 42. Rg2 {[%emt 0:00:58]} Rh1 {[%emt 0:09:19]} 43. Rg5+ {[%emt 0:11:22]} Kf6 {[%emt 0:09:52]} 44. Ke4 {[%emt 0:00:23]} Re1+ {[%emt 0:02:44]} 45. Kd5 {[%emt 0:02:15]} Re2 {[%emt 0:00:05]} 46. c4 {[%emt 0:07:02]} h6 {[%emt 0:05:07]} 47. Rg1 {[%emt 0:00:29]} Rxb2 {[%emt 0:01:39]} 48. Rf1+ {[%emt 0:00:09]} Ke7 {[%emt 0:00:01]} 49. Kxe5 {[%emt 0:00:00]} b3 {[%emt 0:00:15]} 50. Kd4 {[%emt 0:01:50]} Rc2 {[%emt 0:00:56]} 51. Rf5 {[%emt 0:00:49]} b2 {[%emt 0:00:41]} 52. Rb5 {[%emt 0:00:06]} Rh2 {[%emt 0:01:08]} 53. h5 {[%emt 0:00:24]} Rxh3 {[%emt 0:00:35]} 54. Rxb2 {[%emt 0:00:03]} Rh4+ {[%emt 0:00:59]} 55. Kc5 {[%emt 0:00:11]} Rxh5+ {[%emt 0:00:07]} 56. Kc6 {[%emt 0:00:02]} g5 {[%emt 0:01:11]} 57. d4 {[%emt 0:00:25]} Rh4 {[%emt 0:00:22]} 58. Rd2 {[%emt 0:00:06]} g4 {[%emt 0:00:44]} 59. d5 {[%emt 0:02:39]} g3 {[%emt 0:00:07]} 60. d6+ {[%emt 0:00:08]} Kd8 {[%emt 0:01:15]} 61. c5 {[%emt 0:00:09]} Ra4 {[%emt 0:00:00]} 62. Rd3 {[%emt 0:00:54]} g2 {[%emt 0:01:01]} 63. Rg3 {[%emt 0:00:23]} Ra6+ {[%emt 0:00:25]} 64. Kd5 {[%emt 0:00:00]} Kd7 {[%emt 0:00:00]} 65. Rxg2 {[%emt 0:00:06]} Ra1 {[%emt 0:00:00]} 66. Rg7+ {[%emt 0:00:15]} Ke8 {[%emt 0:01:37]} 67. d7+ {[%emt 0:01:41]} Kd8 {[%emt 0:00:07]} 68. Kd6 {[%emt 0:00:00]} Rd1+ {[%emt 0:00:33]} 69. Kc6 {[%emt 0:00:00]} h5 {[%emt 0:00:40]} 70. Rg8+ {[%emt 0:00:00]} Ke7 {[%emt 0:00:02]} 71. Re8+ {[%emt 0:00:00] --- [%clk ] Kb5+ [%clk ] Kxe8 [%clk ] Ke4 [%clk ] Rd5 [%clk ] Rg8+ [%clk ]} 1-0

[Event "1.FrauenBL 2018-19"]
[Site "Berlin"]
[Date "2019.03.01"]
[Round "9.6"]
[White "Fuchs, Judith"]
[Black "Waechter, Nathalie"]
[Result "1-0"]
[ECO "D02"]
[WhiteElo "2256"]
[BlackElo "2038"]
[Annotator "NA"]
[PlyCount "155"]
[EventDate "2018.10.27"]
[EventType "team-tourn"]
[EventCountry "GER"]
[SourceTitle "playchess.com"]
[Source "ChessBase"]
[SourceQuality "1"]
[WhiteTeam "Hamburger SK"]
[BlackTeam "TuRa Harksheide"]
[TimeControl "40/5400+30:1800+30"]

1. d4 {[%emt 0:00:03]} d5 {[%emt 0:00:07]} 2. Bf4 {[%emt 0:00:08]} e6 {[%emt 0:00:17]} 3. e3 {[%emt 0:00:12]} Bd6 {[%emt 0:00:27]} 4. Bg3 {[%emt 0:00:31]} Nf6 {[%emt 0:00:15]} 5. Nf3 {[%emt 0:00:26]} O-O {[%emt 0:00:14]} 6. Nbd2 {[%emt 0:00:59]} b6 {[%emt 0:00:17]} 7. Bd3 {[%emt 0:00:34]} c5 {[%emt 0:00:37]} 8. c3 {[%emt 0:00:32]} Ba6 {[%emt 0:00:16]} 9. Bxa6 {[%emt 0:01:33]} Nxa6 {[%emt 0:00:06]} 10. Qe2 {[%emt 0:00:21]} Nb8 {[%emt 0:01:40]} 11. e4 {[%emt 0:08:07]} Nh5 {[%emt 0:26:33]} 12. Bxd6 {[%emt 0:09:57]} Qxd6 {[%emt 0:00:26]} 13. e5 {[%emt 0:01:09]} Qe7 {[%emt 0:01:05]} 14. Qe3 {[%emt 0:02:44]} f5 {[%emt 0:15:16]} 15. exf6 {[%emt 0:11:46]} Nxf6 {[%emt 0:04:58]} 16. Ne5 {[%emt 0:03:44]} cxd4 {[%emt 0:01:00]} 17. Qxd4 {[%emt 0:01:53]} Nbd7 {[%emt 0:02:36]} 18. Nxd7 {[%emt 0:09:02]} Nxd7 {[%emt 0:01:50]} 19. O-O {[%emt 0:02:13]} Qd6 {[%emt 0:03:11]} 20. f4 {[%emt 0:02:45]} Rf5 {[%emt 0:14:05]} 21. Ne4 {[%emt 0:02:48]} Qc6 {[%emt 0:07:39]} 22. Ng3 {[%emt 0:04:54]} Rf7 {[%emt 0:00:34]} 23. Rae1 {[%emt 0:04:12]} Re8 {[%emt 0:02:47]} 24. b4 {[%emt 0:04:21]} b5 {[%emt 0:02:45]} 25. Rf2 {[%emt 0:10:15]} Qb6 {[%emt 0:06:22]} 26. Ne2 {[%emt 0:07:25]} Qa6 {[%emt 0:02:32]} 27. Nc1 {[%emt 0:01:38]} Qd6 {[%emt 0:01:29]} 28. Nd3 {[%emt 0:02:48]} Rfe7 {[%emt 0:01:52]} 29. Ne5 {[%emt 0:04:18]} Nb6 {[%emt 0:00:40]} 30. Re3 {[%emt 0:00:59]} Rc8 {[%emt 0:00:45]} 31. Rh3 {[%emt 0:00:56]} Nc4 {[%emt 0:00:35]} 32. Qd3 {[%emt 0:00:40]} g6 {[%emt 0:00:32]} 33. Ng4 {[%emt 0:00:37]} Rf8 {[%emt 0:01:38]} 34. Qd4 {[%emt 0:01:32]} e5 {[%emt 0:01:00]} 35. fxe5 {[%emt 0:00:28]} Nxe5 {[%emt 0:00:07]} 36. Rxf8+ {[%emt 0:01:08]} Kxf8 {[%emt 0:00:02]} 37. Nxe5 {[%emt 0:00:35]} Qxe5 {[%emt 0:01:26]} 38. Qxe5 {[%emt 0:00:23]} Rxe5 {[%emt 0:00:06]} 39. Rxh7 {[%emt 0:00:07]} a6 {[%emt 0:00:29]} 40. Kf2 {[%emt 0:00:34]} Re6 {[%emt 0:00:40]} 41. Rc7 {[%emt 0:03:25]} g5 {[%emt 0:04:36]} 42. Kf3 {[%emt 0:03:31]} Rf6+ {[%emt 0:01:49]} 43. Kg3 {[%emt 0:02:36]} Rd6 {[%emt 0:01:43]} 44. Rc5 {[%emt 0:05:51]} d4 {[%emt 0:00:14]} 45. cxd4 {[%emt 0:00:00]} Rxd4 {[%emt 0:00:02]} 46. Rxg5 {[%emt 0:02:56]} Rxb4 {[%emt 0:00:26]} 47. Rf5+ {[%emt 0:02:06]} Kg7 {[%emt 0:00:07]} 48. Rf2 {[%emt 0:00:34]} Kg6 {[%emt 0:01:15]} 49. h3 {[%emt 0:03:34]} Kg5 {[%emt 0:00:26]} 50. Rd2 {[%emt 0:00:26]} Ra4 {[%emt 0:00:49]} 51. Kf3 {[%emt 0:01:07]} Kf5 {[%emt 0:00:51]} 52. g4+ {[%emt 0:01:12]} Kg5 {[%emt 0:00:39]} 53. Rd5+ {[%emt 0:04:08]} Kg6 {[%emt 0:00:18]} 54. Rd6+ {[%emt 0:02:59]} Kg5 {[%emt 0:00:44]} 55. Rd5+ {[%emt 0:01:07]} Kg6 {[%emt 0:00:05]} 56. h4 {[%emt 0:00:38]} Rxa2 {[%emt 0:00:55]} 57. Rd6+ {[%emt 0:00:45]} Kg7 {[%emt 0:00:06]} 58. Kf4 {[%emt 0:00:32]} b4 {[%emt 0:01:37]} 59. Rb6 {[%emt 0:00:23]} Ra4 {[%emt 0:01:37]} 60. Rb7+ {[%emt 0:00:35]} Kf6 {[%emt 0:01:51]} 61. Rb6+ {[%emt 0:01:07]} Kg7 {[%emt 0:00:17]} 62. Rb7+ {[%emt 0:01:11]} Kf6 {[%emt 0:00:04]} 63. g5+ {[%emt 0:00:07]} Kg6 {[%emt 0:01:48]} 64. Rb6+ {[%emt 0:00:42]} Kg7 {[%emt 0:01:40]} 65. Kg4 {[%emt 0:00:40]} a5 {[%emt 0:03:58]} 66. Rb7+ {[%emt 0:00:10]} Kg8 {[%emt 0:05:51]} 67. Kh5 {[%emt 0:00:09]} b3 {[%emt 0:06:59]} 68. Rxb3 {[%emt 0:00:23]} Rb4 {[%emt 0:00:03]} 69. Rc3 {[%emt 0:00:39]} Rb8 {[%emt 0:00:22]} 70. Rc4 {[%emt 0:00:43]} Ra8 {[%emt 0:01:46]} 71. Ra4 {[%emt 0:00:04]} Kf7 {[%emt 0:00:25]} 72. Kg4 {[%emt 0:00:37]} Ra6 {[%emt 0:00:32]} 73. h5 {[%emt 0:00:12]} Kg8 {[%emt 0:02:21]} 74. g6 {[%emt 0:00:26]} Kf8 {[%emt 0:00:58]} 75. Kg5 {[%emt 0:00:13]} Kg7 {[%emt 0:00:32]} 76. h6+ {[%emt 0:00:43]} Kf8 {[%emt 0:00:39]} 77. Rf4+ {[%emt 0:00:30]} Kg8 {[%emt 0:00:19]} 78. h7+ {[%emt 0:00:12]} 1-0